fUSD/lending_fUSD_20250807
["ID","MTS","AMOUNT","RATE_DAILY","PERIOD"]
[377842752,1754573459572,-500.0,0.00020092,2]
[377842753,1754573459582,-500.0,0.00020092,2]
[377842754,1754573459592,-500.0,0.00020092,2]
[377842755,1754573459602,-500.0,0.00020092,2]
[377842756,1754573459612,-500.0,0.00020092,2]
[377842757,1754573459622,-84.73222653,0.00020092,2]
[377842758,1754573459637,-415.26777347,0.00020092,2]
[377842759,1754573459646,-500.0,0.00020092,2]
[377842760,1754573459657,-500.0,0.00020092,2]
[377842761,1754573459666,-500.0,0.00020092,2]
[377842762,1754573459676,-500.0,0.00020092,2]
[377842763,1754573459687,-500.0,0.00020092,2]
[377842764,1754573459698,-500.0,0.00020092,2]
[377842765,1754573459708,-500.0,0.00020092,2]
[377842766,1754573459718,-500.0,0.00020092,2]
[377842767,1754573459727,-500.0,0.00020092,2]
[377842768,1754573459736,-500.0,0.00020092,2]
[377842769,1754573459746,-823.0,0.00020092,2]
[377842770,1754573459758,-956.0,0.00020095,2]
[377842771,1754573459767,-112.54974962,0.00020095,2]
[377842772,1754573464301,-54.43925038,0.00020095,2]
[377842773,1754573464314,-564.0,0.00020095,2]
[377842774,1754573464323,-540.74800655,0.00020095,2]
[377842776,1754573472987,-151.0,0.00018977,2]
[377842777,1754573473009,-1275.87,0.00019182,2]
[377842778,1754573473034,-200.0,0.00019195,2]
[377842779,1754573473057,-200.0,0.000198,7]
[377842780,1754573473079,-1000.0,0.00019867,2]
[377842781,1754573473102,-500.0,0.000199,7]
[377842782,1754573473124,-1888.95,0.00019965,2]
[377842783,1754573473148,-438.06,0.00019965,2]
[377842784,1754573473173,-400.0,0.00019965,2]
[377842785,1754573473196,-400.0,0.00019966,2]
[377842786,1754573473218,-400.0,0.00019966,2]
[377842787,1754573473239,-1010.87,0.00019966,2]
[377842788,1754573473261,-1056.32,0.00019966,2]
[377842789,1754573473284,-400.0,0.00019966,2]
[377842790,1754573473307,-400.0,0.00019966,2]
[377842791,1754573473333,-1050.41,0.00019966,2]
[377842792,1754573473358,-1907.58,0.00019966,2]
[377842793,1754573473379,-400.0,0.00019966,2]
[377842794,1754573473403,-400.0,0.00019966,2]
[377842795,1754573473426,-400.0,0.00019966,2]
[377842796,1754573473452,-400.0,0.00019966,2]
[377842797,1754573473475,-400.0,0.00019966,2]
[377842798,1754573473498,-1437.33,0.00019966,2]
[377842799,1754573473523,-400.0,0.00019967,2]
[377842800,1754573473546,-6562.87,0.00019967,2]
[377842801,1754573473570,-970.26,0.00019967,2]
[377842802,1754573473594,-400.0,0.00019967,2]
[377842803,1754573473617,-400.0,0.00019967,2]
[377842804,1754573473640,-400.0,0.00019967,2]
[377842805,1754573473665,-400.0,0.00019967,2]
[377842806,1754573473688,-781.16,0.00019975,2]
[377842807,1754573473711,-259.6239286,0.00019995,2]
[377842808,1754573473735,-332.90683178,0.00019995,2]
[377842809,1754573473760,-500.0,0.00019995,2]
[377842810,1754573473786,-500.0,0.00019995,2]
[377842811,1754573473811,-185.53145742,0.00019995,2]
[377842812,1754573473839,-500.0,0.00019995,2]
[377842813,1754573473864,-375.3996,0.0002,2]
[377842814,1754573474098,400.0,0.00019966,2]
[377842815,1754573474165,742.23,0.00019967,2]
[377842816,1754573474255,2331.35,0.00019965,2]
[377842817,1754573474997,2794.63212556,0.0002,2]
[377842818,1754573475541,407.7,0.00019966,2]
[377842819,1754573475656,139239.94605664,0.00019867,2]
[377842829,1754573512650,855.03000946,0.00019766,36]
[377842831,1754573516700,855.03000942,0.00019766,36]
[377842833,1754573521675,855.03000942,0.00019766,36]
[377842835,1754573526674,434.9099717,0.00019766,36]
[377842849,1754573564263,-420.12003772,0.00019766,36]
[377842850,1754573564290,-855.03000942,0.00019766,36]
[377842851,1754573564317,-855.03000942,0.00019767,36]
[377842852,1754573564345,-855.03000942,0.00019767,36]
[377842853,1754573564373,-14.78993402,0.00019767,36]
[377842858,1754573573554,-840.2400754,0.00019767,36]
[377842859,1754573573576,-855.03000942,0.00019767,36]
[377842860,1754573573596,-855.03000942,0.00019767,36]
[377843061,1754573997125,218.61,0.00013699,2]
[377843328,1754574128090,228.61,0.00018156,3]
[377843329,1754574132469,151.0,0.00017999,2]
[377843330,1754574149266,151.0,0.00017986,2]
[377843331,1754574158454,616.81,0.00015068,2]
[377843332,1754574158508,616.81,0.00016673,2]
[377843337,1754574399535,150.0,0.000173,2]
[377843339,1754574436564,400.0,0.000196,7]
[377843340,1754574438720,900.0,0.000197,7]
[377843350,1754574616518,519.0,0.00017578,2]
[377843355,1754574632403,-2504.33,0.00018017,2]
[377843356,1754574632413,-186.92,0.00018096,2]
[377843357,1754574632422,-1200.0,0.00018116,2]
[377843358,1754574632432,-300.0,0.00018116,2]
[377843359,1754574632441,-1200.0,0.00018117,2]
[377843360,1754574632451,-452.0,0.00018117,2]
[377843361,1754574632460,-1000.0,0.00018117,2]
[377843362,1754574632470,-598.75,0.00018117,2]
[377843363,1754574632479,-60904.88,0.00018118,2]
[377843364,1754574632489,-4913.61,0.00018151,2]
[377843365,1754574632498,-279.2,0.00018153,2]
[377843366,1754574632507,-363.0178,0.00018264,2]
[377843367,1754574632517,-616.81,0.00018277,2]
[377843368,1754574632526,-150.0,0.0001848,2]
[377843369,1754574632535,-871.51,0.00018511,2]
[377843370,1754574632545,-871.51,0.00018521,2]
[377843371,1754574632554,-871.51,0.00018531,2]
[377843372,1754574632563,-871.51,0.00018541,2]
[377843373,1754574632572,-166.82,0.00018547,2]
[377843374,1754574632582,-871.51,0.0001855,2]
[377843375,1754574632592,-871.51,0.0001856,2]
[377843376,1754574632602,-189.02,0.00018566,2]
[377843377,1754574632611,-871.51,0.0001857,2]
[377843378,1754574632620,-871.51,0.0001858,2]
[377843379,1754574632634,-1204.0,0.00018585,2]
[377843380,1754574632643,-1122.0,0.00018585,2]
[377843381,1754574632652,-871.51,0.00018589,2]
[377843382,1754574632665,-500.0,0.00018596,2]
[377843383,1754574632675,-600.0,0.00018596,2]
[377843384,1754574632684,-600.0,0.00018596,2]
[377843385,1754574632694,-600.0,0.00018596,2]
[377843386,1754574632703,-600.0,0.00018596,2]
[377843387,1754574632712,-600.0,0.00018596,2]
[377843388,1754574632722,-454.49259013,0.00018596,2]
[377843389,1754574632732,-151.0,0.00018596,2]
[377843390,1754574632743,-151.0,0.00018596,2]
[377843391,1754574632753,-500.0,0.00018596,2]
[377843392,1754574632763,-500.0,0.00018596,2]
[377843393,1754574632772,-500.0,0.00018596,2]
[377843394,1754574632782,-500.0,0.00018596,2]
[377843395,1754574632792,-500.0,0.00018596,2]
[377843396,1754574632801,-500.0,0.00018596,2]
[377843397,1754574632810,-500.0,0.00018596,2]
[377843398,1754574632819,-500.0,0.00018596,2]
[377843399,1754574632830,-500.0,0.00018596,2]
[377843400,1754574632840,-500.0,0.00018596,2]
[377843401,1754574632850,-500.0,0.00018596,2]
[377843402,1754574632859,-500.0,0.00018596,2]
[377843403,1754574632869,-151.0,0.00018596,2]
[377843404,1754574632880,-871.51,0.00018599,2]
[377843405,1754574632890,-2882.64,0.00018607,2]
[377843406,1754574632899,-871.51,0.00018609,2]
[377843407,1754574632908,-871.51,0.00018619,2]
[377843408,1754574632918,-871.51,0.00018628,2]
[377843409,1754574632928,-871.51,0.00018638,2]
[377843410,1754574632937,-871.51,0.00018648,2]
[377843411,1754574632947,-1019.67139361,0.00018649,2]
[377843412,1754574632956,-500.0,0.00018651,2]
[377843413,1754574632965,-871.51,0.00018658,2]
[377843414,1754574632975,-871.51,0.00018667,2]
[377843415,1754574632984,-871.51,0.00018677,2]
[377843416,1754574632993,-853.0,0.00018678,2]
[377843417,1754574633003,-5000.01,0.00018685,2]
[377843418,1754574633013,-871.51,0.00018687,2]
[377843419,1754574633023,-871.51,0.00018697,2]
[377843420,1754574633032,-276.83,0.00018746,2]
[377843421,1754574633042,-186.92,0.00018775,2]
[377843422,1754574633051,-250.0,0.00018871,2]
[377843423,1754574633061,-2515.16891295,0.0001888,2]
[377843424,1754574633070,-210.62,0.00018899,2]
[377843425,1754574633080,-172.64,0.00018922,2]
[377843426,1754574633090,-187.28127305,0.0001893,2]
[377843427,1754574633099,-354.15466027,0.0001893,2]
[377843428,1754574633109,-16640.03816215,0.00018931,2]
[377843429,1754574633121,-732.705,0.00018931,2]
[377843430,1754574633141,-723.90165583,0.00018931,2]
[377843431,1754574633154,-5803.35518202,0.00018931,2]
[377843432,1754574633164,-473.27,0.00018951,2]
[377843433,1754574633174,-150.0,0.00018951,2]
[377843434,1754574633184,-1000.0,0.00018969,2]
[377843435,1754574633194,-600.0,0.00018973,2]
[377843436,1754574633203,-151.76,0.00018973,2]
[377843437,1754574633213,-281.55811561,0.0001898,2]
[377843438,1754574633222,-139.47394307,0.0001898,2]
[377843439,1754574633234,-460.52605693,0.0001898,2]
[377843440,1754574633244,-422.55350124,0.0001898,2]
[377843441,1754574633253,-500.0,0.0001898,2]
[377843442,1754574633263,-500.0,0.0001898,2]
[377843443,1754574633272,-553.10776478,0.0001898,2]
[377843444,1754574633282,-401.19111454,0.0001898,2]
[377843445,1754574633291,-500.0,0.0001898,2]
[377843446,1754574633301,-151.0,0.0001898,2]
[377843447,1754574633311,-500.0,0.0001898,2]
[377843448,1754574633320,-500.0,0.0001898,2]
[377843449,1754574633330,-500.0,0.0001898,2]
[377843450,1754574633339,-500.0,0.0001898,2]
[377843451,1754574633349,-500.0,0.0001898,2]
[377843452,1754574633359,-500.0,0.0001898,2]
[377843453,1754574633368,-500.0,0.0001898,2]
[377843454,1754574633381,-151.0,0.0001898,2]
[377843455,1754574633391,-500.0,0.0001898,2]
[377843456,1754574633400,-500.0,0.0001898,2]
[377843457,1754574633410,-500.0,0.0001898,2]
[377843458,1754574633419,-500.0,0.0001898,2]
[377843459,1754574633429,-500.0,0.0001898,2]
[377843460,1754574633438,-500.0,0.0001898,2]
[377843461,1754574633448,-500.0,0.0001898,2]
[377843462,1754574633457,-475.32206453,0.0001898,2]
[377843463,1754574633469,-24.67793547,0.0001898,2]
[377843464,1754574633478,-500.0,0.0001898,2]
[377843465,1754574633488,-500.0,0.0001898,2]
[377843466,1754574633497,-500.0,0.0001898,2]
[377843467,1754574633506,-160.0,0.0001898,2]
[377843468,1754574633516,-500.0,0.0001898,2]
[377843469,1754574633525,-500.0,0.0001898,2]
[377843470,1754574633535,-500.0,0.0001898,2]
[377843471,1754574633544,-500.0,0.0001898,2]
[377843472,1754574633554,-500.0,0.0001898,2]
[377843473,1754574633564,-250.0,0.0001898,2]
[377843474,1754574633573,-267.46074303,0.0001898,2]
[377843475,1754574633583,-250.0,0.0001898,2]
[377843476,1754574633592,-250.0,0.0001898,2]
[377843477,1754574633601,-250.0,0.0001898,2]
[377843478,1754574633611,-250.0,0.0001898,2]
[377843479,1754574633621,-250.0,0.0001898,2]
[377843480,1754574633633,-300.0,0.0001898,2]
[377843481,1754574633643,-300.0,0.0001898,2]
[377843482,1754574633656,-250.0,0.0001898,2]
[377843483,1754574633667,-300.0,0.0001898,2]
[377843484,1754574633676,-250.0,0.0001898,2]
[377843485,1754574633687,-250.0,0.0001898,2]
[377843486,1754574633697,-300.0,0.0001898,2]
[377843487,1754574633707,-250.0,0.0001898,2]
[377843488,1754574633716,-300.0,0.0001898,2]
[377843489,1754574633726,-176.21945025,0.0001898,2]
[377843490,1754574633736,-300.0,0.0001898,2]
[377843491,1754574633746,-300.0,0.0001898,2]
[377843492,1754574633755,-250.0,0.0001898,2]
[377843493,1754574633765,-250.0,0.0001898,2]
[377843494,1754574633774,-300.0,0.0001898,2]
[377843495,1754574633783,-250.0,0.0001898,2]
[377843496,1754574633793,-36.45715344,0.0001898,2]
[377843497,1754574636505,-352.63152596,0.0001898,2]
[377843498,1754574636516,-250.0,0.0001898,2]
[377843499,1754574636526,-250.0,0.0001898,2]
[377843500,1754574636535,-250.0,0.0001898,2]
[377843501,1754574636545,-250.0,0.0001898,2]
[377843502,1754574636555,-250.0,0.0001898,2]
[377843503,1754574636564,-250.0,0.0001898,2]
[377843504,1754574636574,-250.0,0.0001898,2]
[377843505,1754574636584,-250.0,0.0001898,2]
[377843506,1754574636593,-250.0,0.0001898,2]
[377843507,1754574636602,-201.93286098,0.0001898,2]
[377843508,1754574636612,-300.0,0.0001898,2]
[377843509,1754574636621,-151.0,0.0001898,2]
[377843510,1754574636632,-151.0,0.0001898,2]
[377843511,1754574636641,-155.11,0.00018991,2]
[377843512,1754574636653,-598.75,0.00019023,2]
[377843513,1754574636664,-1349.57561306,0.00019081,2]
[377843660,1754574638647,-107.50629344,0.00018017,2]
[377843673,1754574638842,-2123.44954649,0.00018017,2]
[377843676,1754574638861,-121761.58367767,0.00018017,2]
[377843870,1754574640925,-4070.71470128,0.00018017,2]
[377843872,1754574640937,-583.098,0.00018017,2]
[377843875,1754574640959,-35037.8482668,0.00018017,2]
[377844101,1754574643326,-240.98792432,0.00018017,2]
[377844113,1754574643455,-38972.2367325,0.00018017,2]
[377844119,1754574643513,-13655.0000005,0.00018017,2]
[377844126,1754574643572,-1302.1418136,0.00018017,2]
[377844432,1754574646565,-837.55711908,0.00018017,2]
[377844434,1754574646576,-15394.00000997,0.00018017,2]
[377846234,1754574688401,1084.348,0.00017656,2]
[377846249,1754574826277,-270.41087216,0.00018008,2]
[377846250,1754574830224,168.5,0.0002223,90]
[377846259,1754574885856,506.99997,0.00017578,2]
[377846260,1754574886108,2900.76,0.00018006,2]
[377846261,1754574908685,1000.0,0.00018,2]
[377846263,1754574910871,1003.0,0.00018,2]
[377846267,1754574972489,2185.89203,0.00018006,2]
[377846307,1754574978534,175.0,0.00018168,7]
[377846309,1754574997661,163.97797,0.00018005,2]
[377846310,1754575052037,207.67,0.00013699,2]
[377846323,1754575164623,666.0,0.00018003,3]
[377846325,1754575211564,250.0,0.000185,3]
[377846328,1754575228519,533.38,0.00015068,2]
[377846329,1754575228771,533.38,0.00016666,2]
[377846334,1754575288865,867.479,0.00017656,2]
[377846335,1754575322320,150.0,0.00017772,2]
[377846336,1754575333336,4242.0,0.00018,2]
[377846338,1754575381410,300.0,0.00018005,2]
[377846339,1754575414211,328.39290523,0.00017953,2]
[377846340,1754575414232,331.84028905,0.00017953,2]
[377846342,1754575458681,150.0,0.000172,2]
[377846343,1754575465346,552.69170538,0.00017953,2]
[377846344,1754575475974,179.33497836,0.00017953,2]
[377846345,1754575501691,1200.0,0.00018005,2]
[377846346,1754575501785,300.0,0.00018005,2]
[377846347,1754575502522,200.0,0.00018005,2]
[377846348,1754575513328,152.98712667,0.000162,2]
[377846349,1754575513890,150.89693109,0.000162,2]
[377846352,1754575533226,150.0,0.000162,2]
[377846355,1754575607370,1000.0,0.00017912,2]
[377846356,1754575622181,300.0,0.00018005,2]
[377846357,1754575632032,400.0,0.000177,6]
[377846358,1754575634173,800.0,0.000178,6]
[377846359,1754575635686,519.0,0.00017608,2]
[377846360,1754575636293,1200.0,0.000179,6]
[377846362,1754575644978,4214.24698391,0.00017953,2]
[377846363,1754575652324,198.50386655,0.00017953,2]
[377846364,1754575669431,152.0,0.00018,2]
[377846365,1754575678209,152.0,0.00018,2]
[377846370,1754575740046,483.60524226,0.00017953,2]
[377846371,1754575741460,300.0,0.00018005,2]
[377846373,1754575752035,228.41,0.00017774,2]
[377846375,1754575759419,660.23319427,0.00017953,2]
[377846379,1754575797872,471.94,0.00017775,2]
[377846380,1754575802648,1200.0,0.00018005,2]
[377846381,1754575807635,154.03,0.00017771,2]
[377846382,1754575807897,154.03,0.00017794,2]
[377846383,1754575808106,154.03,0.00017816,2]
[377846384,1754575808435,154.03,0.00017838,2]
[377846385,1754575808615,154.03,0.0001786,2]
[377846387,1754575818747,154.03,0.00017882,2]
[377846388,1754575819008,154.03,0.00017905,2]
[377846389,1754575819447,154.03,0.00017927,2]
[377846390,1754575819522,154.03,0.00017949,2]
[377846393,1754575831932,-500.0,0.00018006,2]
[377846394,1754575831941,-500.0,0.00018006,2]
[377846395,1754575831951,-500.0,0.00018006,2]
[377846396,1754575831962,-500.0,0.00018006,2]
[377846397,1754575831971,-500.0,0.00018006,2]
[377846398,1754575831980,-500.0,0.00018006,2]
[377846399,1754575831990,-500.0,0.00018006,2]
[377846400,1754575832005,-324.31643114,0.00018006,2]
[377846401,1754575832014,-250.0,0.00018006,2]
[377846402,1754575832023,-300.0,0.00018006,2]
[377846403,1754575832033,-300.0,0.00018006,2]
[377846404,1754575832043,-159.78928946,0.00018007,2]
[377846405,1754575832053,-300.0,0.00018016,2]
[377846406,1754575832062,-300.0,0.00018016,2]
[377846407,1754575832071,-300.0,0.00018016,2]
[377846408,1754575832081,-311.76024624,0.00018016,2]
[377846409,1754575832091,-605.16667566,0.00018016,2]
[377846410,1754575832101,-411.65054173,0.00018016,2]
[377846412,1754575832110,-500.0,0.00018016,2]
[377846413,1754575832119,-194.88642058,0.00018016,2]
[377846415,1754575832128,-297.90622853,0.00018016,2]
[377846416,1754575832138,-500.0,0.00018016,2]
[377846417,1754575832148,-500.0,0.00018016,2]
[377846418,1754575832157,-618.67512429,0.00018016,2]
[377846419,1754575832167,-174.11680958,0.00018016,2]
[377846420,1754575832176,-500.0,0.00018016,2]
[377846422,1754575832186,-500.0,0.00018016,2]
[377846424,1754575832195,-307.5,0.00018016,2]
[377846426,1754575832205,-500.0,0.00018016,2]
[377846428,1754575832214,-500.0,0.00018016,2]
[377846430,1754575832224,-500.0,0.00018016,2]
[377846432,1754575832233,-500.0,0.00018016,2]
[377846434,1754575832243,-500.0,0.00018016,2]
[377846436,1754575832253,-296.051866,0.00018016,2]
[377846438,1754575832262,-268.08776382,0.00018016,2]
[377846440,1754575832272,-72882.51,0.00018016,2]
[377846442,1754575832281,-155.635489,0.00018016,2]
[377846444,1754575832291,-57254.23920343,0.00018017,2]
[377846464,1754575837576,-1986834.92671092,0.00018017,2]
[377846465,1754575837591,-2097.93,0.0001803,2]
[377846466,1754575837601,-156.82797243,0.00018053,2]
[377846467,1754575837611,-1000.0,0.00018155,2]
[377846468,1754575837621,-162.26,0.00018188,2]
[377846469,1754575837630,-4214.24698384,0.00018196,2]
[377846470,1754575837639,-533.38,0.00018264,2]
[377846471,1754575837649,-266.06,0.00018356,2]
[377846472,1754575837658,-150.0,0.0001838,2]
[377846473,1754575837668,-198.50386652,0.00018382,2]
[377846474,1754575837677,-483.60524219,0.00018422,2]
[377846475,1754575837686,-4214.24698384,0.00018439,2]
[377846476,1754575837696,-283.79076401,0.00018499,2]
[377846477,1754575837705,-850.15978556,0.00018499,2]
[377846478,1754575837715,-19999.0,0.000186,2]
[377846479,1754575837724,-250.0,0.00018661,2]
[377846480,1754575837735,-471.94,0.00018664,2]
[377846481,1754575837744,-4214.24698384,0.00018681,2]
[377846482,1754575837753,-500.0,0.0001874,2]
[377846483,1754575837763,-156.82797237,0.00018766,2]
[377846484,1754575837772,-198.50386652,0.00018812,2]
[377846485,1754575837781,-160.0,0.0001887,2]
[377846486,1754575837791,-500.0,0.0001887,2]
[377846487,1754575837800,-500.0,0.0001887,2]
[377846488,1754575837811,-500.0,0.0001887,2]
[377846489,1754575837821,-500.0,0.0001887,2]
[377846490,1754575837830,-151.0,0.0001887,2]
[377846491,1754575837840,-267.46074303,0.0001887,2]
[377846492,1754575837850,-500.0,0.0001887,2]
[377846494,1754575837859,-500.0,0.0001887,2]
[377846495,1754575837869,-500.0,0.0001887,2]
[377846497,1754575837878,-500.0,0.0001887,2]
[377846499,1754575837887,-500.0,0.0001887,2]
[377846501,1754575837897,-500.0,0.0001887,2]
[377846503,1754575837907,-500.0,0.0001887,2]
[377846505,1754575837916,-500.0,0.0001887,2]
[377846507,1754575837926,-500.0,0.0001887,2]
[377846509,1754575837935,-500.0,0.0001887,2]
[377846511,1754575837945,-500.0,0.0001887,2]
[377846513,1754575837955,-500.0,0.0001887,2]
[377846515,1754575837964,-500.0,0.0001887,2]
[377846517,1754575837973,-500.0,0.0001887,2]
[377846519,1754575837983,-500.0,0.0001887,2]
[377846521,1754575837992,-500.0,0.0001887,2]
[377846523,1754575838005,-500.0,0.0001887,2]
[377846525,1754575838015,-500.0,0.0001887,2]
[377846527,1754575838024,-401.19111454,0.0001887,2]
[377846529,1754575838033,-500.0,0.0001887,2]
[377846531,1754575838044,-234.88108967,0.0001887,2]
[377846533,1754575838054,-957.82245,0.0001889,2]
[377846535,1754575838063,-483.60524219,0.0001889,2]
[377846537,1754575838074,-1600.0,0.000189,6]
[377846539,1754575838084,-4214.24698384,0.00018924,2]
[377846541,1754575838093,-168.0,0.00018938,2]
[377846543,1754575838102,-1000.0,0.00018999,2]
[377846545,1754575838113,-2959.0,0.00019048,2]
[377846547,1754575838122,-2959.0,0.0001909,2]
[377846549,1754575838131,-2959.0,0.00019097,2]
[377846550,1754575838140,-5511.0,0.000191,3]
[377846551,1754575838149,-2959.0,0.00019107,2]
[377846553,1754575838158,-2959.0,0.00019122,2]
[377846555,1754575838168,-2959.0,0.00019146,2]
[377846557,1754575838177,-4214.24698384,0.00019167,2]
[377846559,1754575838186,-1969.11230206,0.00019168,2]
[377846561,1754575838195,-400.0,0.00019178,2]
[377846563,1754575838204,-400.0,0.00019178,2]
[377846565,1754575838213,-400.0,0.00019178,2]
[377846567,1754575838223,-400.0,0.00019178,2]
[377846568,1754575838232,-400.0,0.00019178,2]
[377846570,1754575838242,-400.0,0.00019178,2]
[377846572,1754575838251,-400.0,0.00019178,2]
[377846574,1754575838261,-400.0,0.00019178,2]
[377846576,1754575838271,-150.866752,0.00019178,2]
[377846578,1754575838280,-400.0,0.00019178,2]
[377846580,1754575838289,-400.0,0.00019178,2]
[377846582,1754575838298,-150.613148,0.00019178,2]
[377846584,1754575838308,-400.0,0.00019178,2]
[377846586,1754575838317,-400.0,0.00019178,2]
[377846588,1754575838326,-828.07,0.00019178,2]
[377846590,1754575838335,-400.0,0.00019178,2]
[377846592,1754575838346,-152.711212,0.00019178,2]
[377846594,1754575838356,-434.58,0.00019178,2]
[377846596,1754575838365,-400.0,0.00019178,2]
[377846598,1754575838374,-2476.39,0.00019178,2]
[377846600,1754575838383,-9647.26,0.00019178,2]
[377846602,1754575838392,-400.0,0.00019178,2]
[377846604,1754575838402,-400.0,0.00019178,2]
[377846606,1754575838412,-710.3,0.00019178,2]
[377846608,1754575838421,-402.39241912,0.00019178,2]
[377846610,1754575838433,-400.0,0.00019178,2]
[377846612,1754575838442,-400.57,0.00019178,2]
[377846614,1754575838452,-1647.96,0.00019178,2]
[377846616,1754575838461,-400.0,0.00019178,2]
[377846618,1754575838470,-400.0,0.00019178,2]
[377846620,1754575838480,-501.72,0.00019178,2]
[377846622,1754575838489,-400.0,0.00019178,2]
[377846624,1754575838499,-931.05,0.00019178,2]
[377846626,1754575838509,-400.0,0.00019178,2]
[377846629,1754575838520,-897.27,0.00019178,2]
[377846631,1754575838530,-400.0,0.00019178,2]
[377846633,1754575838540,-400.0,0.00019178,2]
[377846635,1754575838549,-400.0,0.00019178,2]
[377846637,1754575838559,-522.96,0.00019178,2]
[377846639,1754575838567,-400.0,0.00019178,2]
[377846641,1754575838577,-400.0,0.00019178,2]
[377846643,1754575838587,-510.03,0.00019178,2]
[377846645,1754575838597,-400.0,0.00019178,2]
[377846647,1754575838607,-400.0,0.00019178,2]
[377846649,1754575838616,-1831.48,0.00019178,2]
[377846651,1754575838626,-654.26,0.00019178,2]
[377846653,1754575838636,-435.4733503,0.00019178,2]
[377846654,1754575838645,-893.56,0.00019178,2]
[377846656,1754575838654,-400.0,0.00019178,2]
[377846658,1754575838663,-455.25,0.00019178,2]
[377846660,1754575838673,-497.2442026,0.00019178,2]
[377846662,1754575838682,-400.0,0.00019178,2]
[377846664,1754575838691,-400.0,0.00019178,2]
[377846666,1754575838700,-400.0,0.00019178,2]
[377846668,1754575838710,-400.0,0.00019178,2]
[377846670,1754575838720,-502.74,0.00019178,2]
[377846672,1754575838729,-401.8150248,0.00019178,2]
[377846674,1754575838739,-400.0,0.00019178,2]
[377846676,1754575838748,-400.0,0.00019178,2]
[377846678,1754575838756,-732.78,0.00019178,2]
[377846680,1754575838766,-1553.31,0.00019178,2]
[377846682,1754575838775,-1432.91,0.00019178,2]
[377846684,1754575838785,-400.0,0.00019178,2]
[377846716,1754575839108,-364.54,0.00019178,2]
[377846718,1754575839118,-400.0,0.00019178,2]
[377846720,1754575839128,-400.0,0.00019178,2]
[377846722,1754575839137,-1040.99,0.00019178,2]
[377846724,1754575839147,-400.0,0.00019178,2]
[377846725,1754575839156,-400.0,0.00019178,2]
[377846727,1754575839167,-400.0,0.00019178,2]
[377846729,1754575839176,-400.0,0.00019178,2]
[377846731,1754575839186,-400.0,0.00019178,2]
[377846733,1754575839195,-400.0,0.00019178,2]
[377846735,1754575839205,-1379.54,0.00019178,2]
[377846737,1754575839214,-400.0,0.00019178,2]
[377846739,1754575839224,-1196.97,0.00019178,2]
[377846741,1754575839233,-400.0,0.00019178,2]
[377846743,1754575839243,-771.71,0.00019178,2]
[377846745,1754575839252,-400.0,0.00019178,2]
[377846747,1754575839262,-400.0,0.00019178,2]
[377846749,1754575839271,-400.0,0.00019178,2]
[377846751,1754575839281,-1132.64,0.00019178,2]
[377846753,1754575839290,-400.0,0.00019178,2]